[Event "Challengers Triathlon (GM2)"]
[Site "Biel, CH"]
[Date "2025.07.20"]
[Round "19"]
[White "Theodorou, Nikolas"]
[Black "Dardha, Daniel"]
[Result "1-0"]
[Board "2"]
[TimeControl "180+2"]
[WhiteFideId "4262875"]
[BlackFideId "240990"]
[WhiteTitle "GM"]
[BlackTitle "GM"]
[WhiteElo "2549"]
[BlackElo "2592"]
[WhiteTeam "GRE"]
[BlackTeam "BEL"]
[WhiteClock "0:00:08"]
[BlackClock "0:00:03"]
[Variant "Standard"]

1. e4 {[%clk 0:03:03]}  d6 {[%clk 0:03:02]} 2. d4 {[%clk 0:03:03]}  Nf6 {[%clk 0:03:02]} 3. Nc3 {[%clk 0:03:03]}  e5 {[%clk 0:03:03]} 4. Nge2 {[%clk 0:03:03]}  Be7 {[%clk 0:03:02]} 5. g3 {[%clk 0:03:03]}  O-O {[%clk 0:03:00]} 6. Bg2 {[%clk 0:03:04]}  c6 {[%clk 0:03:00]} 7. O-O {[%clk 0:03:04]}  b5 {[%clk 0:03:01]} 8. a3 {[%clk 0:03:01]}  Nbd7 {[%clk 0:02:56]} 9. h3 {[%clk 0:03:02]}  a5 {[%clk 0:02:51]} 10. g4 {[%clk 0:03:02]}  Ba6 {[%clk 0:02:35]} 11. b4 {[%clk 0:03:02]}  Nb6 {[%clk 0:02:19]} 12. Ng3 {[%clk 0:02:50]}  g6 {[%clk 0:02:06]} 13. Bh6 {[%clk 0:02:33]}  Re8 {[%clk 0:02:05]} 14. f4 {[%clk 0:02:33]}  Nc4 {[%clk 0:01:20]} 15. g5 {[%clk 0:02:11]}  Nd7 {[%clk 0:01:13]} 16. fxe5 {[%clk 0:01:25]}  Bxg5 {[%clk 0:01:10]} 17. Bxg5 {[%clk 0:01:24]}  Qxg5 {[%clk 0:01:14]} 18. Qf3 {[%clk 0:01:25]}  dxe5 {[%clk 0:00:27]} 19. Qxf7+ {[%clk 0:01:26]}  Kh8 {[%clk 0:00:28]} 20. Qxd7 {[%clk 0:01:26]}  Qxg3 {[%clk 0:00:13]} 21. Rf7 {[%clk 0:01:27]}  Qh4 {[%clk 0:00:05]} 22. d5 {[%clk 0:01:07]}  Rad8 {[%clk 0:00:03]} 23. Qxc6 {[%clk 0:01:01]}  Bc8 {[%clk 0:00:04]} 24. Nxb5 {[%clk 0:00:46]}  Ne3 {[%clk 0:00:04]} 25. Qf6+ {[%clk 0:00:46]}  Qxf6 {[%clk 0:00:05]} 26. Rxf6 {[%clk 0:00:47]}  axb4 {[%clk 0:00:06]} 27. axb4 {[%clk 0:00:48]}  Nxc2 {[%clk 0:00:07]} 28. Ra7 {[%clk 0:00:46]}  Rd7 {[%clk 0:00:04]} 29. Nd6 {[%clk 0:00:31]}  Rxa7 {[%clk 0:00:04]} 30. Nxe8 {[%clk 0:00:32]}  Kg8 {[%clk 0:00:05]} 31. b5 {[%clk 0:00:33]}  Bd7 {[%clk 0:00:04]} 32. Nd6 {[%clk 0:00:28]}  Ra1+ {[%clk 0:00:04]} 33. Rf1 {[%clk 0:00:28]}  Ra2 {[%clk 0:00:03]} 34. b6 {[%clk 0:00:26]}  Ne3 {[%clk 0:00:03]} 35. Rf2 {[%clk 0:00:22]}  Ra1+ {[%clk 0:00:04]} 36. Kh2 {[%clk 0:00:23]}  Rb1 {[%clk 0:00:05]} 37. b7 {[%clk 0:00:24]}  g5 {[%clk 0:00:04]} 38. Bf3 {[%clk 0:00:19]}  h5 {[%clk 0:00:04]} 39. Bxh5 {[%clk 0:00:18]}  Rb3 {[%clk 0:00:03]} 40. Bf7+ {[%clk 0:00:15]}  Kg7 {[%clk 0:00:04]} 41. Be6 {[%clk 0:00:16]}  Ba4 {[%clk 0:00:03]} 42. Rf7+ {[%clk 0:00:15]}  Kg6 {[%clk 0:00:04]} 43. Kg1 {[%clk 0:00:06]}  Rb2 {[%clk 0:00:04]} 44. Rf3 {[%clk 0:00:05]}  Rb1+ {[%clk 0:00:04]} 45. Kf2 {[%clk 0:00:06]}  Nd1+ {[%clk 0:00:04]} 46. Ke2 {[%clk 0:00:07]}  Rb2+ {[%clk 0:00:04]} 47. Ke1 {[%clk 0:00:07]}  Rb6 {[%clk 0:00:04]} 48. Rf8 {[%clk 0:00:08]}  Rb2 {[%clk 0:00:03]} 49. b8=Q {[%clk 0:00:08]} 1-0

[Event "Challengers Triathlon (GM2)"]
[Site "Biel, CH"]
[Date "2025.07.20"]
[Round "19"]
[White "Jumabayev, Rinat"]
[Black "Hakobyan, Aram"]
[Result "1/2-1/2"]
[Board "3"]
[TimeControl "180+2"]
[WhiteFideId "13702661"]
[BlackFideId "13306677"]
[WhiteTitle "GM"]
[BlackTitle "GM"]
[WhiteElo "2520"]
[BlackElo "2557"]
[WhiteTeam "KAZ"]
[BlackTeam "ARM"]
[WhiteClock "0:01:33"]
[BlackClock "0:01:53"]
[Variant "Standard"]

1. d4 {[%clk 0:03:04]}  Nf6 {[%clk 0:03:03]} 2. c4 {[%clk 0:03:05]}  e6 {[%clk 0:03:04]} 3. Nf3 {[%clk 0:03:05]}  d5 {[%clk 0:03:05]} 4. g3 {[%clk 0:03:06]}  Be7 {[%clk 0:03:06]} 5. Bg2 {[%clk 0:03:07]}  O-O {[%clk 0:03:05]} 6. O-O {[%clk 0:03:00]}  Nbd7 {[%clk 0:03:05]} 7. b3 {[%clk 0:02:54]}  dxc4 {[%clk 0:02:50]} 8. bxc4 {[%clk 0:02:54]}  c5 {[%clk 0:02:52]} 9. Nc3 {[%clk 0:02:38]}  cxd4 {[%clk 0:02:49]} 10. Qxd4 {[%clk 0:02:30]}  Nb6 {[%clk 0:02:45]} 11. Rb1 {[%clk 0:02:16]}  Qc7 {[%clk 0:01:52]} 12. Nb5 {[%clk 0:01:31]}  Qxc4 {[%clk 0:01:50]} 13. Qxc4 {[%clk 0:01:32]}  Nxc4 {[%clk 0:01:51]} 14. Nc7 {[%clk 0:01:33]}  Rb8 {[%clk 0:01:52]} 15. Na6 {[%clk 0:01:33]}  Ra8 {[%clk 0:01:52]} 16. Nc7 {[%clk 0:01:33]}  Rb8 {[%clk 0:01:53]} 17. Na6 {[%clk 0:01:33]} 1/2-1/2

[Event "Challengers Triathlon (GM2)"]
[Site "Biel, CH"]
[Date "2025.07.20"]
[Round "20"]
[White "Navara, David"]
[Black "Jumabayev, Rinat"]
[Result "1/2-1/2"]
[Board "1"]
[TimeControl "180+2"]
[WhiteFideId "309095"]
[BlackFideId "13702661"]
[WhiteTitle "GM"]
[BlackTitle "GM"]
[WhiteElo "2646"]
[BlackElo "2520"]
[WhiteTeam "CZE"]
[BlackTeam "KAZ"]
[WhiteClock "0:00:07"]
[BlackClock "0:00:06"]
[Variant "Standard"]

1. e4 {[%clk 0:03:03]}  e5 {[%clk 0:03:03]} 2. Nf3 {[%clk 0:03:04]}  Nc6 {[%clk 0:03:03]} 3. Bb5 {[%clk 0:03:05]}  Nf6 {[%clk 0:03:04]} 4. d3 {[%clk 0:03:06]}  Bc5 {[%clk 0:02:58]} 5. c3 {[%clk 0:03:07]}  O-O {[%clk 0:02:58]} 6. O-O {[%clk 0:03:07]}  Re8 {[%clk 0:02:46]} 7. Re1 {[%clk 0:02:55]}  a6 {[%clk 0:02:11]} 8. Ba4 {[%clk 0:02:53]}  d6 {[%clk 0:01:51]} 9. h3 {[%clk 0:02:33]}  b5 {[%clk 0:01:31]} 10. Bb3 {[%clk 0:02:20]}  h6 {[%clk 0:01:30]} 11. a4 {[%clk 0:02:11]}  Rb8 {[%clk 0:01:31]} 12. Nbd2 {[%clk 0:02:07]}  Bb6 {[%clk 0:01:17]} 13. axb5 {[%clk 0:01:58]}  axb5 {[%clk 0:01:18]} 14. Nf1 {[%clk 0:01:57]}  Be6 {[%clk 0:01:12]} 15. Bxe6 {[%clk 0:01:49]}  Rxe6 {[%clk 0:01:13]} 16. Be3 {[%clk 0:01:41]}  d5 {[%clk 0:01:10]} 17. Bxb6 {[%clk 0:01:36]}  Rxb6 {[%clk 0:01:11]} 18. Qc2 {[%clk 0:01:29]}  Rb8 {[%clk 0:00:39]} 19. Ne3 {[%clk 0:01:22]}  Qd7 {[%clk 0:00:40]} 20. exd5 {[%clk 0:01:08]}  Nxd5 {[%clk 0:00:41]} 21. Nxd5 {[%clk 0:01:08]}  Qxd5 {[%clk 0:00:42]} 22. Re3 {[%clk 0:01:09]}  Rbe8 {[%clk 0:00:42]} 23. Rae1 {[%clk 0:01:09]}  R6e7 {[%clk 0:00:32]} 24. Qe2 {[%clk 0:01:01]}  Re6 {[%clk 0:00:32]} 25. Nh4 {[%clk 0:00:57]}  g6 {[%clk 0:00:33]} 26. Qg4 {[%clk 0:00:51]}  Kh7 {[%clk 0:00:34]} 27. Qf3 {[%clk 0:00:44]}  Qxf3 {[%clk 0:00:33]} 28. Nxf3 {[%clk 0:00:43]}  Kg7 {[%clk 0:00:33]} 29. g3 {[%clk 0:00:37]}  f5 {[%clk 0:00:28]} 30. d4 {[%clk 0:00:25]}  e4 {[%clk 0:00:18]} 31. d5 {[%clk 0:00:26]}  Ne5 {[%clk 0:00:19]} 32. dxe6 {[%clk 0:00:12]}  Nxf3+ {[%clk 0:00:20]} 33. Rxf3 {[%clk 0:00:13]}  exf3 {[%clk 0:00:21]} 34. Re5 {[%clk 0:00:10]}  Kf6 {[%clk 0:00:17]} 35. Rxb5 {[%clk 0:00:10]}  Rxe6 {[%clk 0:00:18]} 36. Kf1 {[%clk 0:00:08]}  Rd6 {[%clk 0:00:08]} 37. Ke1 {[%clk 0:00:08]}  Re6+ {[%clk 0:00:10]} 38. Kf1 {[%clk 0:00:09]}  Rd6 {[%clk 0:00:07]} 39. Ke1 {[%clk 0:00:09]}  Re6+ {[%clk 0:00:08]} 40. Kd2 {[%clk 0:00:05]}  Re2+ {[%clk 0:00:09]} 41. Kd3 {[%clk 0:00:07]}  g5 {[%clk 0:00:05]} 42. Rc5 {[%clk 0:00:04]}  g4 {[%clk 0:00:05]} 43. hxg4 {[%clk 0:00:04]}  fxg4 {[%clk 0:00:07]} 44. Rxc7 {[%clk 0:00:04]}  Rxb2 {[%clk 0:00:07]} 45. Ke3 {[%clk 0:00:04]}  h5 {[%clk 0:00:08]} 46. Rc6+ {[%clk 0:00:04]}  Kg7 {[%clk 0:00:05]} 47. Rc7+ {[%clk 0:00:05]}  Kf6 {[%clk 0:00:07]} 48. Rc6+ {[%clk 0:00:06]}  Kg7 {[%clk 0:00:06]} 49. Rc7+ {[%clk 0:00:07]}  Kf6 {[%clk 0:00:06]} 1/2-1/2

[Event "Challengers Triathlon (GM2)"]
[Site "Biel, CH"]
[Date "2025.07.20"]
[Round "20"]
[White "Hakobyan, Aram"]
[Black "Theodorou, Nikolas"]
[Result "0-1"]
[Board "2"]
[TimeControl "180+2"]
[WhiteFideId "13306677"]
[BlackFideId "4262875"]
[WhiteTitle "GM"]
[BlackTitle "GM"]
[WhiteElo "2557"]
[BlackElo "2549"]
[WhiteTeam "ARM"]
[BlackTeam "GRE"]
[WhiteClock "0:00:03"]
[BlackClock "0:00:12"]
[Variant "Standard"]

1. d4 {[%clk 0:03:03]}  e6 {[%clk 0:03:03]} 2. c4 {[%clk 0:03:04]}  b6 {[%clk 0:03:05]} 3. e4 {[%clk 0:02:49]}  Bb4+ {[%clk 0:03:04]} 4. Bd2 {[%clk 0:02:50]}  Bxd2+ {[%clk 0:03:04]} 5. Qxd2 {[%clk 0:02:50]}  d5 {[%clk 0:03:05]} 6. Bd3 {[%clk 0:02:39]}  Nc6 {[%clk 0:03:00]} 7. Ne2 {[%clk 0:02:25]}  dxe4 {[%clk 0:03:00]} 8. Bxe4 {[%clk 0:02:25]}  Bb7 {[%clk 0:03:01]} 9. Nbc3 {[%clk 0:02:24]}  Nf6 {[%clk 0:02:55]} 10. Bf3 {[%clk 0:02:19]}  Na5 {[%clk 0:02:39]} 11. Bxb7 {[%clk 0:02:20]}  Nxb7 {[%clk 0:02:40]} 12. O-O {[%clk 0:02:20]}  O-O {[%clk 0:02:40]} 13. Rad1 {[%clk 0:02:20]}  Qe7 {[%clk 0:02:36]} 14. Nf4 {[%clk 0:02:07]}  Rad8 {[%clk 0:02:37]} 15. Qe3 {[%clk 0:02:05]}  Nd6 {[%clk 0:02:37]} 16. Qe2 {[%clk 0:01:24]}  Nf5 {[%clk 0:02:28]} 17. d5 {[%clk 0:01:25]}  e5 {[%clk 0:01:57]} 18. Nd3 {[%clk 0:01:12]}  e4 {[%clk 0:01:57]} 19. Ne1 {[%clk 0:01:02]}  Qe5 {[%clk 0:01:46]} 20. Nc2 {[%clk 0:01:01]}  Rfe8 {[%clk 0:01:47]} 21. Ne3 {[%clk 0:00:59]}  Nd4 {[%clk 0:01:34]} 22. Qd2 {[%clk 0:00:59]}  c5 {[%clk 0:01:35]} 23. Ne2 {[%clk 0:00:59]}  Nxe2+ {[%clk 0:01:22]} 24. Qxe2 {[%clk 0:01:00]}  h5 {[%clk 0:01:23]} 25. h3 {[%clk 0:01:01]}  g6 {[%clk 0:01:24]} 26. a3 {[%clk 0:00:52]}  b5 {[%clk 0:01:08]} 27. cxb5 {[%clk 0:00:36]}  Nxd5 {[%clk 0:01:07]} 28. Nxd5 {[%clk 0:00:36]}  Rxd5 {[%clk 0:01:08]} 29. Rxd5 {[%clk 0:00:37]}  Qxd5 {[%clk 0:01:10]} 30. Rd1 {[%clk 0:00:38]}  Qb3 {[%clk 0:01:08]} 31. Rd7 {[%clk 0:00:30]}  e3 {[%clk 0:01:00]} 32. fxe3 {[%clk 0:00:22]}  Rxe3 {[%clk 0:00:55]} 33. Qf2 {[%clk 0:00:20]}  Qe6 {[%clk 0:00:49]} 34. Rxf7 {[%clk 0:00:13]}  Re2 {[%clk 0:00:17]} 35. Rf8+ {[%clk 0:00:13]}  Kg7 {[%clk 0:00:18]} 36. Qf4 {[%clk 0:00:14]}  g5 {[%clk 0:00:09]} 37. Qf5 {[%clk 0:00:07]}  Re1+ {[%clk 0:00:10]} 38. Kh2 {[%clk 0:00:05]}  Qd6+ {[%clk 0:00:11]} 39. g3 {[%clk 0:00:05]}  Re2+ {[%clk 0:00:13]} 40. Qf2 {[%clk 0:00:03]}  Rxf2+ {[%clk 0:00:10]} 41. Rxf2 {[%clk 0:00:04]}  h4 {[%clk 0:00:12]} 42. Rg2 {[%clk 0:00:04]}  Kg6 {[%clk 0:00:12]} 43. a4 {[%clk 0:00:03]}  Kh5 {[%clk 0:00:12]} 0-1

[Event "Challengers Triathlon (GM2)"]
[Site "Biel, CH"]
[Date "2025.07.20"]
[Round "20"]
[White "Dardha, Daniel"]
[Black "Ma, Qun"]
[Result "0-1"]
[Board "3"]
[TimeControl "180+2"]
[WhiteFideId "240990"]
[BlackFideId "8603154"]
[WhiteTitle "GM"]
[BlackTitle "GM"]
[WhiteElo "2592"]
[BlackElo "2614"]
[WhiteTeam "BEL"]
[BlackTeam "CHN"]
[WhiteClock "0:00:08"]
[BlackClock "0:00:09"]
[Variant "Standard"]

1. d4 {[%clk 0:03:02]}  d5 {[%clk 0:03:04]} 2. c4 {[%clk 0:02:58]}  e6 {[%clk 0:03:05]} 3. Nf3 {[%clk 0:02:57]}  Nf6 {[%clk 0:03:06]} 4. Nc3 {[%clk 0:02:52]}  c5 {[%clk 0:03:08]} 5. e3 {[%clk 0:02:40]}  Nc6 {[%clk 0:03:08]} 6. a3 {[%clk 0:02:41]}  a6 {[%clk 0:03:03]} 7. dxc5 {[%clk 0:02:40]}  Bxc5 {[%clk 0:03:03]} 8. b4 {[%clk 0:02:41]}  Ba7 {[%clk 0:03:04]} 9. Ra2 {[%clk 0:02:40]}  dxc4 {[%clk 0:02:40]} 10. Qxd8+ {[%clk 0:01:59]}  Kxd8 {[%clk 0:02:41]} 11. Bxc4 {[%clk 0:01:59]}  Ke7 {[%clk 0:02:31]} 12. Rc2 {[%clk 0:01:47]}  b5 {[%clk 0:02:20]} 13. Bd3 {[%clk 0:01:47]}  Bb7 {[%clk 0:02:22]} 14. Bb2 {[%clk 0:01:36]}  Rac8 {[%clk 0:01:07]} 15. Ke2 {[%clk 0:01:37]}  Nb8 {[%clk 0:01:06]} 16. Rhc1 {[%clk 0:01:13]}  Nbd7 {[%clk 0:01:07]} 17. a4 {[%clk 0:01:01]}  bxa4 {[%clk 0:01:08]} 18. Nxa4 {[%clk 0:01:01]}  Rxc2+ {[%clk 0:01:07]} 19. Rxc2 {[%clk 0:00:58]}  Rc8 {[%clk 0:00:55]} 20. Rxc8 {[%clk 0:00:40]}  Bxc8 {[%clk 0:00:56]} 21. Ne5 {[%clk 0:00:29]}  Nxe5 {[%clk 0:00:35]} 22. Bxe5 {[%clk 0:00:29]}  g6 {[%clk 0:00:21]} 23. Bc7 {[%clk 0:00:06]}  Nd5 {[%clk 0:00:16]} 24. Ba5 {[%clk 0:00:07]}  Bd7 {[%clk 0:00:08]} 25. g3 {[%clk 0:00:08]}  Bxa4 {[%clk 0:00:09]} 0-1

[Event "Challengers Triathlon (GM2)"]
[Site "Biel, CH"]
[Date "2025.07.22"]
[Round "21"]
[White "Theodorou, Nikolas"]
[Black "Navara, David"]
[Result "1-0"]
[Board "1"]
[TimeControl "40/7200+30:1800+30"]
[WhiteFideId "4262875"]
[BlackFideId "309095"]
[WhiteTitle "GM"]
[BlackTitle "GM"]
[WhiteElo "2625"]
[BlackElo "2662"]
[WhiteTeam "GRE"]
[BlackTeam "CZE"]
[WhiteClock "0:03:55"]
[BlackClock "0:06:48"]
[Variant "Standard"]

1. d4 {[%clk 1:58:55]}  Nf6 {[%clk 1:59:54]} 2. c4 {[%clk 1:58:48]}  e6 {[%clk 1:59:50]} 3. Nc3 {[%clk 1:58:43]}  Bb4 {[%clk 1:59:46]} 4. g3 {[%clk 1:58:21]}  O-O {[%clk 1:59:00]} 5. Bg2 {[%clk 1:57:41]}  d5 {[%clk 1:58:42]} 6. a3 {[%clk 1:57:24]}  Be7 {[%clk 1:57:03]} 7. Nf3 {[%clk 1:57:05]}  dxc4 {[%clk 1:56:52]} 8. Ne5 {[%clk 1:56:52]}  Nc6 {[%clk 1:56:36]} 9. Bxc6 {[%clk 1:56:34]}  bxc6 {[%clk 1:56:32]} 10. Nxc6 {[%clk 1:56:29]}  Qe8 {[%clk 1:55:50]} 11. Nxe7+ {[%clk 1:56:22]}  Qxe7 {[%clk 1:55:43]} 12. Qa4 {[%clk 1:56:13]}  c5 {[%clk 1:54:42]} 13. dxc5 {[%clk 1:55:55]}  Qxc5 {[%clk 1:54:32]} 14. Be3 {[%clk 1:55:15]}  Qc7 {[%clk 1:54:04]} 15. Rd1 {[%clk 1:54:51]}  e5 {[%clk 1:43:25]} 16. f3 {[%clk 1:41:14]}  Bb7 {[%clk 1:33:29]} 17. O-O {[%clk 1:33:54]}  e4 {[%clk 1:30:11]} 18. fxe4 {[%clk 1:18:03]}  Nxe4 {[%clk 1:15:16]} 19. Qd7 {[%clk 1:14:45]}  Qc6 {[%clk 1:06:29]} 20. Qxc6 {[%clk 1:10:51]}  Bxc6 {[%clk 1:06:17]} 21. Nxe4 {[%clk 1:09:23]}  Bxe4 {[%clk 1:05:53]} 22. Rd4 {[%clk 0:56:56]}  Rfe8 {[%clk 1:02:16]} 23. Rxc4 {[%clk 0:56:31]}  Bd5 {[%clk 0:59:24]} 24. Rc3 {[%clk 0:56:17]}  a5 {[%clk 0:58:18]} 25. b3 {[%clk 0:50:30]}  Rac8 {[%clk 0:49:35]} 26. Rxc8 {[%clk 0:43:21]}  Rxc8 {[%clk 0:49:05]} 27. b4 {[%clk 0:38:48]}  axb4 {[%clk 0:47:28]} 28. axb4 {[%clk 0:38:45]}  Rc3 {[%clk 0:22:22]} 29. Rd1 {[%clk 0:25:48]}  Rxe3 {[%clk 0:22:08]} 30. Rxd5 {[%clk 0:25:43]}  Kf8 {[%clk 0:14:19]} 31. Kf2 {[%clk 0:23:42]}  Rb3 {[%clk 0:07:05]} 32. b5 {[%clk 0:13:36]}  Ke7 {[%clk 0:06:59]} 33. h4 {[%clk 0:10:32]}  g6 {[%clk 0:02:12]} 34. g4 {[%clk 0:09:35]}  Ke6 {[%clk 0:02:10]} 35. e4 {[%clk 0:09:31]}  h6 {[%clk 0:01:43]} 36. h5 {[%clk 0:04:21]}  gxh5 {[%clk 0:00:47]} 37. gxh5 {[%clk 0:03:09]}  Rc3 {[%clk 0:00:45]} 38. Ke2 {[%clk 0:02:48]}  Rb3 {[%clk 0:00:42]} 39. Kd2 {[%clk 0:02:37]}  Rb4 {[%clk 0:00:40]} 40. Kd3 {[%clk 0:31:07]}  f6 {[%clk 0:31:08]} 41. Rc5 {[%clk 0:29:03]}  Kd7 {[%clk 0:26:36]} 42. Ke3 {[%clk 0:22:00]}  Kd6 {[%clk 0:26:05]} 43. Rd5+ {[%clk 0:22:25]}  Ke7 {[%clk 0:26:22]} 44. Kf4 {[%clk 0:21:33]}  Ke6 {[%clk 0:24:07]} 45. Rc5 {[%clk 0:21:44]}  Rb1 {[%clk 0:23:51]} 46. Rc6+ {[%clk 0:21:30]}  Ke7 {[%clk 0:24:11]} 47. b6 {[%clk 0:18:59]}  Rb5 {[%clk 0:22:32]} 48. Rc7+ {[%clk 0:14:21]}  Kd6 {[%clk 0:21:28]} 49. Rc8 {[%clk 0:12:57]}  Rxb6 {[%clk 0:07:31]} 50. Kf5 {[%clk 0:12:46]}  Rb5+ {[%clk 0:07:03]} 51. Kxf6 {[%clk 0:08:33]}  Rxh5 {[%clk 0:07:24]} 52. Rd8+ {[%clk 0:08:44]}  Kc7 {[%clk 0:07:50]} 53. Rd3 {[%clk 0:07:06]}  Rh2 {[%clk 0:06:05]} 54. e5 {[%clk 0:07:22]}  h5 {[%clk 0:05:53]} 55. e6 {[%clk 0:07:20]}  h4 {[%clk 0:05:33]} 56. e7 {[%clk 0:05:20]}  Rf2+ {[%clk 0:05:55]} 57. Ke6 {[%clk 0:05:43]}  Re2+ {[%clk 0:06:21]} 58. Kf7 {[%clk 0:06:09]}  Rf2 {[%clk 0:06:47]} 59. Kg7 {[%clk 0:06:18]}  Rg2 {[%clk 0:07:00]} 60. Kf8 {[%clk 0:06:42]}  Rf2+ {[%clk 0:07:23]} 61. Ke8 {[%clk 0:07:09]}  Rf1 {[%clk 0:03:43]} 62. Rc3+ {[%clk 0:06:16]}  Kb6 {[%clk 0:03:45]} 63. Rh3 {[%clk 0:05:03]}  Rf4 {[%clk 0:04:09]} 64. Kd7 {[%clk 0:05:26]}  Rd4+ {[%clk 0:04:36]} 65. Ke6 {[%clk 0:05:51]}  Re4 {[%clk 0:05:04]} 66. Kd6 {[%clk 0:05:30]}  Kb7 {[%clk 0:05:17]} 67. Rb3+ {[%clk 0:02:21]}  Kc8 {[%clk 0:05:32]} 68. Rc3+ {[%clk 0:02:02]}  Kb7 {[%clk 0:05:57]} 69. Kd7 {[%clk 0:02:29]}  Rd4 {[%clk 0:06:21]} 70. Ke6 {[%clk 0:02:56]}  Re4+ {[%clk 0:06:46]} 71. Kf6 {[%clk 0:03:23]}  Re2 {[%clk 0:05:56]} 72. Rf3 {[%clk 0:03:22]}  h3 {[%clk 0:05:45]} 73. Rxh3 {[%clk 0:03:24]}  Rf2+ {[%clk 0:05:56]} 74. Ke6 {[%clk 0:03:10]}  Re2+ {[%clk 0:06:22]} 75. Kd7 {[%clk 0:03:32]}  Rd2 {[%clk 0:06:48]} 76. Ke8 {[%clk 0:03:55]} 1-0

[Event "Challengers Triathlon (GM2)"]
[Site "Biel, CH"]
[Date "2025.07.22"]
[Round "21"]
[White "Jumabayev, Rinat"]
[Black "Hakobyan, Aram"]
[Result "1/2-1/2"]
[Board "2"]
[TimeControl "40/7200+30:1800+30"]
[WhiteFideId "13702661"]
[BlackFideId "13306677"]
[WhiteTitle "GM"]
[BlackTitle "GM"]
[WhiteElo "2546"]
[BlackElo "2621"]
[WhiteTeam "KAZ"]
[BlackTeam "ARM"]
[WhiteClock "0:12:58"]
[BlackClock "0:21:11"]
[Variant "Standard"]

1. e4 {[%clk 1:59:54]}  c5 {[%clk 1:59:58]} 2. Nf3 {[%clk 1:59:47]}  e6 {[%clk 1:59:56]} 3. Nc3 {[%clk 1:59:00]}  Nc6 {[%clk 1:59:51]} 4. h3 {[%clk 1:58:02]}  Be7 {[%clk 1:59:47]} 5. Bb5 {[%clk 1:57:13]}  Qb6 {[%clk 1:53:43]} 6. O-O {[%clk 1:53:53]}  Nd4 {[%clk 1:44:04]} 7. a4 {[%clk 1:42:51]}  a6 {[%clk 1:46:14]} 8. Bd3 {[%clk 1:42:11]}  Nc6 {[%clk 1:41:53]} 9. Re1 {[%clk 1:35:59]}  d6 {[%clk 1:41:25]} 10. Ne2 {[%clk 1:29:43]}  Nb4 {[%clk 1:09:30]} 11. Bc4 {[%clk 1:28:02]}  d5 {[%clk 1:08:50]} 12. exd5 {[%clk 1:17:12]}  exd5 {[%clk 1:08:31]} 13. Bb3 {[%clk 1:16:45]}  c4 {[%clk 1:05:09]} 14. a5 {[%clk 1:13:41]}  cxb3 {[%clk 0:52:34]} 15. c3 {[%clk 1:13:20]}  Qd6 {[%clk 0:47:40]} 16. cxb4 {[%clk 1:12:25]}  Nf6 {[%clk 0:47:20]} 17. d3 {[%clk 1:01:32]}  O-O {[%clk 0:42:20]} 18. Bd2 {[%clk 0:57:19]}  Bd7 {[%clk 0:38:05]} 19. Ned4 {[%clk 0:52:56]}  Rfe8 {[%clk 0:37:38]} 20. Qxb3 {[%clk 0:52:12]}  Bf8 {[%clk 0:36:18]} 21. b5 {[%clk 0:47:39]}  h6 {[%clk 0:31:47]} 22. Rxe8 {[%clk 0:42:05]}  Rxe8 {[%clk 0:30:59]} 23. Re1 {[%clk 0:32:13]}  Ne4 {[%clk 0:28:19]} 24. dxe4 {[%clk 0:23:10]}  dxe4 {[%clk 0:28:10]} 25. bxa6 {[%clk 0:22:45]}  bxa6 {[%clk 0:28:04]} 26. Qb6 {[%clk 0:20:52]}  exf3 {[%clk 0:26:12]} 27. Rxe8 {[%clk 0:21:22]}  Bxe8 {[%clk 0:26:07]} 28. Qxd6 {[%clk 0:19:30]}  Bxd6 {[%clk 0:26:06]} 29. Nxf3 {[%clk 0:19:17]}  f6 {[%clk 0:23:19]} 30. Nd4 {[%clk 0:13:24]}  Be5 {[%clk 0:22:33]} 31. Bc3 {[%clk 0:13:20]}  Bxd4 {[%clk 0:22:29]} 32. Bxd4 {[%clk 0:13:16]}  Bb5 {[%clk 0:22:20]} 33. Bc3 {[%clk 0:13:09]}  Be8 {[%clk 0:22:15]} 34. Bd4 {[%clk 0:13:05]}  Bb5 {[%clk 0:22:10]} 35. Bc3 {[%clk 0:13:02]}  Be8 {[%clk 0:22:04]} 36. Bd4 {[%clk 0:12:58]}  Bb5 {[%clk 0:21:11]} 1/2-1/2

[Event "Challengers Triathlon (GM2)"]
[Site "Biel, CH"]
[Date "2025.07.23"]
[Round "22"]
[White "Navara, David"]
[Black "Hakobyan, Aram"]
[Result "1/2-1/2"]
[Board "1"]
[TimeControl "40/7200+30:1800+30"]
[WhiteFideId "309095"]
[BlackFideId "13306677"]
[WhiteTitle "GM"]
[BlackTitle "GM"]
[WhiteElo "2662"]
[BlackElo "2621"]
[WhiteTeam "CZE"]
[BlackTeam "ARM"]
[WhiteClock "0:27:26"]
[BlackClock "0:41:31"]
[Variant "Standard"]

1. e4 {[%clk 1:59:58]}  c5 {[%clk 1:58:57]} 2. Nf3 {[%clk 1:59:55]}  e6 {[%clk 1:58:53]} 3. d4 {[%clk 1:59:03]}  cxd4 {[%clk 1:58:51]} 4. Nxd4 {[%clk 1:58:54]}  Nf6 {[%clk 1:58:45]} 5. Nc3 {[%clk 1:58:47]}  Nc6 {[%clk 1:58:42]} 6. Nxc6 {[%clk 1:58:34]}  bxc6 {[%clk 1:58:40]} 7. e5 {[%clk 1:58:22]}  Nd5 {[%clk 1:58:34]} 8. Ne4 {[%clk 1:58:13]}  Bb7 {[%clk 1:57:55]} 9. Be2 {[%clk 1:55:33]}  c5 {[%clk 1:57:43]} 10. O-O {[%clk 1:53:42]}  Qc7 {[%clk 1:57:19]} 11. c4 {[%clk 1:51:33]}  Nb4 {[%clk 1:56:33]} 12. Nd6+ {[%clk 1:49:56]}  Bxd6 {[%clk 1:56:30]} 13. exd6 {[%clk 1:49:21]}  Qb6 {[%clk 1:56:08]} 14. Be3 {[%clk 1:42:22]}  Be4 {[%clk 1:55:28]} 15. Qd2 {[%clk 1:38:04]}  Nc2 {[%clk 1:46:15]} 16. Rac1 {[%clk 1:34:46]}  Nxe3 {[%clk 1:45:49]} 17. Qxe3 {[%clk 1:33:44]}  Bg6 {[%clk 1:41:29]} 18. h4 {[%clk 1:31:53]}  h6 {[%clk 1:38:15]} 19. h5 {[%clk 1:21:02]}  Bh7 {[%clk 1:38:11]} 20. Qc3 {[%clk 1:08:11]}  O-O {[%clk 1:37:25]} 21. Rfd1 {[%clk 1:06:21]}  a5 {[%clk 1:33:14]} 22. Bd3 {[%clk 1:03:18]}  Rfb8 {[%clk 1:28:33]} 23. Rc2 {[%clk 0:56:43]}  Ra6 {[%clk 1:25:34]} 24. Qe5 {[%clk 0:47:45]}  f5 {[%clk 1:04:49]} 25. Be2 {[%clk 0:46:11]}  f4 {[%clk 1:04:12]} 26. Rcd2 {[%clk 0:39:11]}  Rf8 {[%clk 1:03:47]} 27. Bg4 {[%clk 0:37:01]}  Kh8 {[%clk 0:55:21]} 28. Rc1 {[%clk 0:34:43]}  Qc6 {[%clk 0:47:31]} 29. Bf3 {[%clk 0:31:40]}  Qb6 {[%clk 0:46:21]} 30. Bg4 {[%clk 0:29:52]}  Qc6 {[%clk 0:44:22]} 31. Bf3 {[%clk 0:28:23]}  Qb6 {[%clk 0:42:21]} 32. Bg4 {[%clk 0:28:09]}  Qc6 {[%clk 0:41:31]} 33. Bf3 {[%clk 0:27:26]} 1/2-1/2